bitfinex-derivatives/quotes_ETHF0:USTF0_20241004
["timestamp","ask_amount","ask_price","bid_price","bid_amount"]
[1728028103545,4.68028,2385.9,2385.5,0.4108]
[1728028103743,0.41919,2385.7,2385.6,0.4079]
[1728028104337,4.68028,2385.9,2385.5,0.4108]
[1728028104541,0.4192,2385.6,2385.5,0.4108]
[1728028106749,0.41923,2385.4,2385.3,3.2078]
[1728028107544,1.24122,2385.5,2385.3,3.2078]
[1728028108050,0.41923,2385.4,2385.3,3.2078]
[1728028109145,0.822,2385.5,2385.2,0.3897]
[1728028109146,0.41925,2385.3,2385.2,0.3897]
[1728028111559,0.41925,2385.4,2385.2,0.3897]
[1728028112651,0.41929,2385.1,2385.0,3.2078]
[1728028112851,0.41929,2385.1,2384.5,0.098]
[1728028112852,3.93,2385.1,2384.5,0.098]
[1728028113058,0.41935,2384.8,2384.5,0.41938]
[1728028113447,4.97837,2384.8,2384.4,3.2078]
[1728028113651,0.41936,2384.7,2384.4,3.2078]
[1728028113949,0.41938,2384.6,2384.4,3.2078]
[1728028114751,3.93,2384.8,2384.4,3.2078]
[1728028115055,3.93,2384.8,2384.4,3.6272]
[1728028115261,0.41936,2384.7,2384.4,3.6272]
[1728028116554,3.93,2384.8,2384.4,3.6272]
[1728028116758,0.41937,2384.7,2384.4,3.6272]
[1728028118055,0.41937,2384.7,2384.5,0.0276]
[1728028119554,3.93,2384.8,2384.5,0.0276]
[1728028119754,0.41936,2384.7,2384.5,0.0276]
[1728028120459,0.41937,2384.6,2384.5,0.0276]
[1728028121563,0.41937,2384.7,2384.5,0.0276]
[1728028121964,3.93,2384.8,2384.5,0.0276]
[1728028121965,0.41937,2384.6,2384.5,0.0276]
[1728028123865,0.41936,2384.7,2384.5,0.44699]
[1728028124453,0.41935,2384.8,2384.5,0.0276]
[1728028124964,0.41935,2384.8,2384.6,1.23027]
[1728028125152,6.1654,2385.0,2384.6,1.23027]
[1728028125153,2.2354,2385.0,2384.6,1.23027]
[1728028125358,1.4487,2385.0,2384.7,0.4269]
[1728028125557,0.41934,2384.8,2384.7,0.4269]
[1728028125869,0.81971,2385.0,2384.7,0.84625]
[1728028126162,0.4004,2385.0,2384.8,0.41933]
[1728028126371,0.8197,2385.0,2384.8,0.41933]
[1728028126660,0.4004,2385.0,2384.8,0.41933]
[1728028126860,5.78201,2385.2,2384.8,4.1928]
[1728028126861,0.41928,2385.2,2384.8,4.1928]
[1728028127068,0.3968,2385.3,2384.8,3.93]
[1728028127262,0.81606,2385.3,2385.1,3.2078]
[1728028127468,0.81606,2385.3,2385.2,0.3883]
[1728028127867,0.3968,2385.3,2385.2,0.3883]
[1728028128177,0.41922,2385.5,2385.2,1.61036]
[1728028131169,4.74601,2385.6,2385.2,1.61036]
[1728028131365,0.41922,2385.5,2385.2,1.61036]
[1728028134069,0.41922,2385.5,2385.2,1.61037]
[1728028136271,4.3268,2385.6,2385.2,1.61037]
[1728028136470,0.41922,2385.5,2385.2,1.61037]
[1728028137173,4.74601,2385.6,2385.2,1.61037]
[1728028137570,0.41922,2385.5,2385.2,1.61037]
[1728028139862,0.41922,2385.5,2385.2,1.61036]
[1728028140471,0.41922,2385.5,2385.2,1.1911]
[1728028140676,0.41922,2385.5,2385.2,1.61036]
[1728028141267,4.74601,2385.6,2385.2,1.61036]
[1728028141979,0.41922,2385.5,2385.2,1.61036]
[1728028143673,4.3268,2385.6,2385.2,1.1911]
[1728028143872,0.41922,2385.5,2385.2,1.61036]
[1728028145169,4.3268,2385.6,2385.2,1.61036]
[1728028145170,4.74601,2385.6,2385.2,1.61036]
[1728028145371,0.41922,2385.5,2385.2,1.61036]
[1728028145566,1.81,2385.4,2385.2,1.61036]
[1728028148580,0.3968,2385.6,2385.3,0.41925]
[1728028148581,2.2068,2385.6,2385.3,0.41925]
[1728028148772,0.41923,2385.5,2385.2,3.42036]
[1728028149978,0.41923,2385.5,2385.3,0.41925]
[1728028150185,0.41923,2385.5,2385.2,3.42035]
[1728028150387,0.41922,2385.5,2385.2,3.42035]
[1728028153983,0.41922,2385.5,2385.3,0.41925]
[1728028154179,0.41922,2385.5,2385.2,3.42035]
[1728028155783,1.81,2385.4,2385.2,1.61035]
[1728028156189,1.81,2385.4,2385.3,0.41925]
[1728028156783,1.81,2385.4,2385.2,1.1911]
[1728028157091,2.22923,2385.4,2385.2,1.61036]
[1728028157990,1.81,2385.4,2385.3,0.41925]
[1728028158490,2.22923,2385.4,2385.2,1.61036]
[1728028159292,2.22923,2385.4,2385.3,0.41925]
[1728028159797,1.81,2385.4,2385.3,0.41925]
[1728028160086,2.22923,2385.4,2385.2,1.1911]
[1728028160589,2.22923,2385.4,2385.3,0.41925]
[1728028160786,1.81,2385.4,2385.3,0.41925]
[1728028164291,1.81,2385.4,2385.2,1.1911]
[1728028164485,1.81,2385.4,2385.2,1.61035]
[1728028164887,1.81,2385.4,2385.2,1.1911]
[1728028165080,1.81,2385.4,2385.3,0.41925]
[1728028168289,1.81,2385.4,2385.2,1.1911]
[1728028168684,2.22925,2385.3,2385.2,1.1911]
[1728028168890,1.81,2385.3,2385.2,1.61037]
[1728028170090,0.83352,2385.5,2385.2,1.61037]
[1728028170397,1.81,2385.4,2385.2,1.61037]
[1728028172292,2.22925,2385.3,2385.2,0.3883]
[1728028172493,2.62645,2385.3,2385.2,0.3883]
[1728028173400,2.62645,2385.3,2385.1,3.2078]
[1728028173703,0.4098,2385.2,2385.1,3.2078]
[1728028174103,0.82907,2385.2,2385.1,3.2078]
[1728028174495,2.63907,2385.2,2385.1,3.2078]
[1728028175493,0.41929,2385.1,2385.0,0.3868]
[1728028175696,0.41929,2385.1,2385.0,0.53212095]
[1728028175895,0.41929,2385.1,2385.0,0.14532095]
[1728028176097,0.82389,2385.1,2384.8,2.30252743]
[1728028176505,0.82389,2385.1,2384.8,1.21193]
[1728028176810,0.82389,2385.1,2384.8,2.30252743]
[1728028176995,2.22931,2385.0,2384.8,1.88319743]
[1728028177200,1.81,2385.0,2384.8,1.21193]
[1728028177700,1.81,2384.9,2384.7,4.29839743]
[1728028177907,0.80874,2384.8,2384.7,3.2078]
[1728028178296,0.80874,2384.8,2384.6,0.4186]
[1728028178498,2.22936,2384.7,2384.6,0.4186]
[1728028178696,2.22936,2384.7,2384.4,3.2078]
[1728028178697,6.401,2384.7,2384.4,3.2078]
[1728028178903,0.41939,2384.5,2384.4,3.2078]
[1728028179096,1.81,2384.6,2384.2,0.4186]
[1728028179302,2.22943,2384.3,2384.2,0.4186]
[1728028179709,3.02803,2384.3,2384.2,0.4186]
[1728028180308,0.41946,2384.2,2383.9,0.9174]
[1728028180508,0.41946,2384.2,2383.9,0.8194]
[1728028180723,0.41947,2384.1,2383.9,0.8194]
[1728028180901,0.41948,2384.0,2383.9,0.4186]
[1728028181409,0.41951,2383.9,2383.6,0.4008]
[1728028181611,2.2112,2383.8,2383.6,3.6086]
[1728028181799,2.2112,2383.8,2383.6,3.2078]
[1728028182005,2.2112,2383.8,2383.6,3.62735]
[1728028182812,2.2112,2383.8,2383.6,3.2078]
[1728028182999,2.2112,2383.8,2383.5,0.81886]
[1728028183909,2.2112,2383.8,2383.5,0.3993]
[1728028183910,0.41955,2383.6,2383.5,0.3993]
[1728028184413,0.41955,2383.6,2383.2,0.397]
[1728028184414,0.41957,2383.5,2383.2,0.397]
[1728028184604,2.22957,2383.5,2383.2,0.8021]
[1728028185206,0.8279,2383.8,2383.2,0.4051]
[1728028185207,1.81,2383.3,2383.2,0.4051]
[1728028185713,2.2005,2383.3,2383.2,0.4051]
[1728028186607,0.41964,2383.1,2382.9,0.098]
[1728028186814,0.41964,2383.1,2382.7,4.0163]
[1728028186815,2.22964,2383.1,2382.7,4.0163]
[1728028187109,1.81,2383.1,2382.7,4.0163]
[1728028188514,1.81,2383.1,2382.7,3.5966]
[1728028188709,1.81,2382.9,2382.7,3.5966]
[1728028189213,1.81,2383.0,2382.7,4.0163]
[1728028189514,3.93,2383.1,2382.7,3.5966]
[1728028190413,3.93,2383.1,2382.7,0.80851]
[1728028190802,3.93,2383.1,2382.7,4.01631]
[1728028191935,3.93,2383.1,2382.7,3.5966]
[1728028192414,3.93,2383.1,2382.5,0.41974]
[1728028192415,3.93,2382.9,2382.5,0.41974]
[1728028192611,0.427,2382.8,2382.4,4.03995]
[1728028193517,0.8467,2382.8,2382.4,3.2078]
[1728028193813,3.93,2382.7,2382.4,3.2078]
[1728028195415,0.8515,2382.8,2382.4,3.2078]
[1728028195619,0.8515,2382.8,2382.4,3.62755]
[1728028196119,0.8515,2382.8,2382.5,0.41974]
[1728028196416,0.8515,2382.8,2382.4,3.62755]
[1728028197118,1.27119,2382.8,2382.4,3.62755]
[1728028197513,0.8515,2382.8,2382.4,3.62755]
[1728028199623,0.8515,2382.8,2382.4,3.2078]
[1728028199818,0.8515,2382.8,2382.5,0.41974]
[1728028200120,0.427,2382.8,2382.5,0.41974]
[1728028201618,0.427,2382.8,2382.4,3.2078]
[1728028201825,0.427,2382.8,2382.7,3.2078]
[1728028202718,0.427,2382.8,2382.7,3.6323]
[1728028203420,4.6238,2382.8,2382.7,3.6323]
[1728028203625,0.427,2382.8,2382.7,3.6323]
[1728028204024,6.71409,2383.2,2382.7,3.6323]
[1728028204025,4.219,2383.2,2382.9,0.41967]
[1728028204227,0.41963,2383.2,2382.9,0.41967]
[1728028204423,0.41963,2383.2,2383.0,3.2078]
[1728028204621,0.41963,2383.2,2382.9,0.41967]
[1728028204926,0.4147,2383.3,2382.9,0.41967]
[1728028204927,4.3447,2383.3,2382.9,0.41967]
[1728028205114,4.76431,2383.3,2382.9,0.41967]
[1728028205625,4.76431,2383.3,2382.8,1.20358]
[1728028205920,4.76431,2383.3,2382.9,0.41967]
[1728028206823,4.7643,2383.3,2382.9,0.41967]
[1728028207520,4.3447,2383.3,2382.9,0.41967]
[1728028208124,4.3447,2383.3,2382.8,0.7839]
[1728028208423,4.3447,2383.3,2383.0,0.41965]
[1728028208925,4.3447,2383.3,2383.1,0.3865]
[1728028210119,4.3447,2383.3,2383.1,0.80614]
[1728028211542,0.4147,2383.3,2383.2,0.41962]
[1728028212024,3.62736,2383.6,2383.5,0.41957]
[1728028212025,0.4164,2383.6,2383.5,0.41957]
[1728028212231,13.1614,2383.8,2383.6,0.41954]
[1728028212433,13.1614,2383.8,2383.7,0.415]
[1728028213034,13.58091,2383.8,2383.7,0.415]
[1728028213630,11.77091,2383.8,2383.7,0.415]
[1728028213823,0.83591,2383.8,2383.7,0.415]
[1728028214224,0.4164,2383.8,2383.7,0.415]
[1728028215024,0.83591,2383.8,2383.7,0.415]
[1728028217129,0.4164,2383.8,2383.7,0.415]
[1728028220835,0.83591,2383.8,2383.7,0.415]
[1728028221132,0.4164,2383.8,2383.7,0.415]
[1728028222141,0.83591,2383.8,2383.7,0.415]
[1728028222335,0.4164,2383.8,2383.7,0.415]
[1728028223042,0.83591,2383.8,2383.7,0.415]
[1728028223233,0.4164,2383.8,2383.7,0.415]
[1728028223541,0.83591,2383.8,2383.7,0.415]
[1728028224039,0.4164,2383.8,2383.7,0.415]
[1728028224230,0.83591,2383.8,2383.7,0.415]
[1728028225035,0.4164,2383.8,2383.7,0.415]
[1728028225341,0.83591,2383.8,2383.7,0.415]
[1728028226830,0.4164,2383.8,2383.7,0.415]
[1728028227135,3.93,2384.1,2383.7,0.415]
[1728028227332,4.34947,2384.1,2384.0,0.41948]
[1728028227531,4.34947,2384.1,2383.8,0.7771]
[1728028227755,4.34947,2384.1,2383.9,0.41948]
[1728028228237,0.82826,2384.2,2383.8,0.7771]
[1728028228746,0.41946,2384.1,2384.0,0.41947]
[1728028229130,0.4088,2384.2,2383.8,0.7771]
[1728028229340,0.82825,2384.2,2384.1,0.41946]
[1728028229732,0.82825,2384.2,2384.0,0.41946]
[1728028229941,0.82825,2384.2,2384.1,0.41946]
[1728028230133,0.41946,2384.1,2384.0,3.62727]
[1728028230437,0.4088,2384.2,2384.0,3.62727]
[1728028230939,0.82826,2384.2,2384.1,0.83076]
[1728028231134,0.4088,2384.2,2384.1,0.83076]
[1728028231459,0.4088,2384.2,2384.1,0.4113]
[1728028231847,0.41946,2384.1,2384.0,3.2078]
[1728028232042,4.73906,2384.1,2384.0,3.2078]
[1728028232235,4.3196,2384.1,2384.0,3.2078]
[1728028232429,4.3196,2384.1,2383.5,0.098]
[1728028232430,1.04871,2384.0,2383.5,0.098]
[1728028232636,0.41952,2383.8,2383.4,0.82128]
[1728028232831,4.73813,2383.7,2383.4,0.82128]
[1728028233043,4.3186,2383.7,2383.5,0.41957]
[1728028233344,0.3886,2383.7,2383.5,0.41957]
[1728028233939,0.4206,2384.0,2383.4,0.4017]
[1728028234136,0.4206,2384.0,2383.8,0.4195]
[1728028234137,0.3886,2384.0,2383.8,0.4195]
[1728028234339,0.3886,2384.0,2383.9,0.8212]
[1728028234731,0.098,2384.4,2383.9,0.4017]
[1728028234732,4.028,2384.4,2383.9,0.4017]
[1728028234938,0.4282,2384.3,2384.2,0.41944]
[1728028235238,4.7594,2384.4,2383.9,3.6095]
[1728028235239,0.4088,2384.6,2384.3,0.41942]
[1728028235447,0.837,2384.6,2384.3,0.41942]
[1728028236044,0.837,2384.6,2383.9,8.68623]
[1728028236242,0.837,2384.6,2384.3,0.41941]
[1728028237239,0.837,2384.6,2384.3,0.4182]
[1728028237439,1.25638,2384.6,2384.3,0.4182]
[1728028238843,0.837,2384.6,2384.3,0.4182]
[1728028239141,1.25637,2384.6,2384.3,0.4182]
[1728028239540,0.837,2384.6,2384.3,0.4182]
[1728028239937,0.837,2384.6,2384.3,0.83763]
[1728028240130,0.837,2384.6,2384.3,0.4182]
[1728028240342,0.4282,2384.6,2384.3,0.4182]
[1728028240542,0.4282,2384.6,2384.4,0.4194]
[1728028241144,0.4282,2384.6,2384.3,1.2324]
[1728028241449,0.4282,2384.6,2384.3,1.65181]
[1728028242544,0.4282,2384.6,2384.4,0.41941]
[1728028242749,0.4282,2384.6,2384.3,1.65181]
[1728028243042,3.6279,2384.8,2384.4,0.41941]
[1728028243240,4.0225,2384.8,2384.5,0.41939]
[1728028243440,4.44184,2384.8,2384.4,0.4194]
[1728028243643,4.44184,2384.8,2384.3,5.1624]
[1728028243644,0.3946,2384.8,2384.6,0.41937]
[1728028243946,0.3946,2384.8,2384.7,0.8025]
[1728028244450,0.5182,2385.3,2384.7,1.2229]
[1728028244749,0.41928,2385.2,2384.8,0.41933]
[1728028245046,0.41928,2385.2,2384.8,3.62713]
[1728028245548,4.7688,2385.3,2384.8,3.62713]
[1728028245747,4.7688,2385.3,2384.8,3.2078]
[1728028245950,0.41927,2385.2,2384.8,3.62712]
[1728028248348,5.18806,2385.3,2384.9,0.41931]
[1728028249451,4.7688,2385.3,2384.9,0.41931]
[1728028249648,0.4186,2385.3,2384.8,3.2078]
[1728028249863,0.4186,2385.3,2385.0,0.41929]
[1728028250061,0.4186,2385.3,2385.1,0.4209]
[1728028250354,0.83786,2385.3,2385.1,0.8495]
[1728028250757,0.4186,2385.3,2385.1,0.8495]
[1728028250954,0.098,2385.5,2385.2,3.93]
[1728028251263,0.098,2385.8,2385.5,0.4192]
[1728028251555,4.94755,2385.9,2385.5,0.4192]
[1728028251556,4.94755,2385.9,2385.6,4.0432]
[1728028251747,4.5284,2385.9,2385.6,4.46239]
[1728028252453,4.5284,2385.9,2385.6,4.4624]
[1728028252454,4.94755,2385.9,2385.6,4.4624]
[1728028252654,4.5284,2385.9,2385.6,4.4624]
[1728028252851,0.4074,2385.9,2385.6,4.4624]
[1728028253152,0.4074,2385.9,2385.6,4.0432]
[1728028253347,0.098,2386.1,2385.8,3.93]
[1728028253657,0.113,2386.3,2385.8,3.93]
[1728028253658,0.098,2386.3,2386.0,0.41911]
[1728028253855,0.3947,2386.4,2386.1,0.4157]
[1728028254164,0.81376,2386.4,2386.1,0.4157]
[1728028254459,0.3947,2386.4,2386.1,0.4157]
[1728028254948,0.4953,2386.6,2386.3,3.93]
[1728028254949,0.098,2386.6,2386.3,3.93]
[1728028255149,0.098,2386.6,2386.2,7.3982]
[1728028255150,0.098,2386.9,2386.5,7.1378]
[1728028255455,0.098,2387.2,2386.8,3.93]
[1728028255652,3.6025,2387.3,2386.7,3.93]
[1728028255953,3.6025,2387.3,2386.6,1.25571]
[1728028255954,3.93,2387.2,2386.6,0.8367]
[1728028256156,3.93,2387.2,2386.6,7.9745]
[1728028256157,0.3956,2387.2,2386.6,7.9745]
[1728028256357,0.098,2387.4,2387.1,3.93]
[1728028256551,0.5139,2387.8,2387.1,3.93]
[1728028256746,0.5139,2387.8,2386.9,3.2078]
[1728028256747,3.93,2387.3,2386.9,3.3058]
[1728028256959,3.93,2387.3,2386.9,3.2078]
[1728028257167,3.93,2387.3,2386.8,0.41898]
[1728028257459,3.62669,2387.4,2386.7,3.93]
[1728028257460,3.2078,2387.4,2386.7,3.93]
[1728028257758,3.2078,2387.4,2386.8,0.41898]
[1728028257759,3.62669,2387.4,2386.8,0.41898]
[1728028257960,7.1378,2387.1,2386.6,4.0445]
[1728028258359,3.2078,2387.1,2386.7,0.419]
[1728028258756,3.62674,2387.1,2386.6,8.39351]
[1728028259069,3.2078,2387.1,2386.6,7.9745]
[1728028259358,3.2078,2386.7,2386.6,0.4157]
[1728028259556,3.2078,2387.0,2386.6,0.4157]
[1728028259752,0.41899,2386.8,2386.6,0.4157]
[1728028260275,0.41899,2386.9,2386.6,0.4157]
[1728028260458,3.2078,2387.0,2386.6,0.4157]
[1728028260661,0.41899,2386.8,2386.6,0.4157]
[1728028261157,0.41903,2386.6,2386.3,0.098]
[1728028261360,3.62681,2386.7,2386.2,1.22918]
[1728028261557,0.41903,2386.6,2386.2,1.22918]
[1728028261963,0.41903,2386.6,2386.2,0.8101]
[1728028262152,0.41903,2386.6,2386.2,1.22919]
[1728028262765,3.62682,2386.7,2386.2,1.22919]
[1728028262958,0.41904,2386.5,2386.2,0.8101]
[1728028263158,3.2078,2386.7,2386.2,0.8101]
[1728028263362,0.41905,2386.5,2386.2,0.8101]
[1728028263764,0.41906,2386.4,2386.2,0.8101]
[1728028264065,0.41904,2386.5,2386.2,1.22919]
[1728028264459,0.41904,2386.5,2386.2,0.8101]
[1728028264765,0.41904,2386.5,2386.2,1.22919]
[1728028265365,0.404,2386.6,2386.2,0.8101]
[1728028265561,0.41906,2386.4,2386.2,0.8101]
[1728028265863,0.404,2386.6,2386.2,0.3965]
[1728028266063,0.404,2386.6,2386.0,3.2078]
[1728028266064,0.41911,2386.1,2386.0,3.2078]
[1728028266363,0.41913,2386.0,2385.8,0.3893]
[1728028266567,3.2078,2386.3,2385.8,0.3893]
[1728028266755,3.93,2386.2,2385.7,0.4002]
[1728028267062,0.41919,2385.7,2385.5,0.098]
[1728028267269,0.41919,2385.7,2385.4,0.80853]
[1728028267670,0.3942,2385.9,2385.4,0.3893]
[1728028267896,0.41918,2385.7,2385.4,0.80853]
[1728028268369,0.4192,2385.6,2385.4,0.3893]
[1728028268567,0.3942,2385.9,2385.4,0.3893]
[1728028268568,0.41919,2385.7,2385.4,0.3893]
[1728028268768,0.3942,2385.9,2385.4,0.3893]
[1728028268966,0.4192,2385.7,2385.4,0.3893]
[1728028269167,1.4421,2385.9,2385.4,0.3893]
[1728028269566,0.3942,2385.9,2385.4,0.3893]
[1728028269764,0.3942,2385.9,2385.5,3.93]
[1728028269965,0.3942,2385.9,2385.4,0.3893]
[1728028269966,0.81335,2385.9,2385.6,4.34918]
[1728028270467,3.2078,2386.0,2385.6,3.93]
[1728028270675,4.633,2386.3,2386.0,0.41911]
[1728028270676,0.51708,2386.3,2386.0,0.41911]
[1728028270972,0.84325,2386.5,2386.2,0.41908]
[1728028271274,3.3058,2386.7,2386.3,3.93]
[1728028271463,1.16047,2386.9,2386.1,0.4243]
[1728028271464,0.41902,2386.6,2386.4,4.34906]
[1728028271670,0.41902,2386.6,2386.4,3.93]
[1728028271875,0.419,2386.7,2386.3,4.74037]
[1728028272173,1.4717,2386.8,2386.3,4.74037]
[1728028272174,0.41903,2386.6,2386.3,4.74037]
[1728028272576,1.4717,2386.8,2386.3,4.74037]
[1728028272967,0.41903,2386.6,2386.3,4.74037]
[1728028273166,1.4717,2386.8,2386.3,4.74037]
[1728028273167,0.41904,2386.5,2386.3,4.74037]
[1728028273465,0.41903,2386.6,2386.3,4.74037]
[1728028274672,0.41904,2386.5,2386.3,4.3213]
[1728028274867,0.41903,2386.6,2386.3,4.74037]
[1728028275074,0.41904,2386.5,2386.3,4.74037]
[1728028275473,0.41904,2386.5,2386.3,4.3213]
[1728028275877,0.41904,2386.5,2386.3,4.74037]
[1728028276181,0.41904,2386.5,2386.3,4.3213]
[1728028276382,1.04752,2386.7,2386.3,4.3213]
[1728028276581,0.41905,2386.5,2386.3,4.3213]
[1728028277681,0.41905,2386.5,2386.2,3.62688]
[1728028278686,0.41905,2386.5,2386.2,3.2078]
[1728028278885,1.04752,2386.7,2386.2,3.2078]
[1728028279087,1.04752,2386.7,2386.3,0.41907]
[1728028279283,0.4242,2386.8,2386.2,3.2078]
[1728028279487,3.2078,2386.7,2386.2,3.2078]
[1728028279682,4.25532,2386.7,2386.2,3.2078]
[1728028279889,0.41906,2386.5,2386.2,3.62689]
[1728028280581,3.2078,2386.7,2386.2,3.2078]
[1728028280787,0.41909,2386.2,2386.1,0.4243]
[1728028280988,3.93,2386.5,2386.1,0.4243]
[1728028281190,0.41908,2386.3,2386.1,0.4243]
[1728028281783,3.2078,2386.7,2386.3,0.41907]
[1728028282094,0.84319,2386.8,2386.5,0.41904]
[1728028282287,0.84319,2386.8,2386.6,0.3945]
[1728028282483,0.84319,2386.8,2386.6,0.8137]
[1728028282895,0.4242,2386.8,2386.6,0.8137]
[1728028283083,0.419,2386.7,2386.6,0.8137]
[1728028283389,7.3974,2386.7,2386.1,3.2078]
[1728028283588,0.41909,2386.2,2386.1,3.2078]
[1728028284184,0.4267,2386.3,2386.1,3.2078]
[1728028284790,0.84578,2386.3,2386.1,3.2078]
[1728028285305,0.84579,2386.3,2386.1,3.2078]
[1728028285488,0.41909,2386.2,2386.1,3.2078]
[1728028285690,0.4267,2386.3,2386.1,3.2078]
[1728028285900,0.84578,2386.3,2386.1,3.2078]
[1728028287304,0.41909,2386.2,2386.1,3.2078]
[1728028287902,0.4267,2386.3,2386.1,3.2078]
[1728028288099,0.41909,2386.2,2386.1,3.2078]
[1728028288708,0.4267,2386.3,2385.9,0.821]
[1728028288911,0.4267,2386.3,2385.9,0.3945]
[1728028288912,0.41913,2386.0,2385.9,0.3945]
[1728028289096,0.41916,2385.8,2385.7,3.2078]
[1728028289404,1.04783,2386.0,2385.6,0.4027]
[1728028289405,0.41918,2385.7,2385.6,0.4027]
[1728028290109,1.04783,2386.0,2385.6,0.4027]
[1728028290301,0.41918,2385.7,2385.6,0.4027]
[1728028290502,0.41917,2385.8,2385.6,0.4027]
[1728028290803,7.9902,2386.1,2385.6,0.4027]
[1728028290804,0.41918,2385.7,2385.6,0.4027]
[1728028292103,9.038,2386.1,2385.6,0.4027]
[1728028292300,0.41915,2385.9,2385.6,1.23809]
[1728028292696,0.41914,2386.0,2385.7,4.34917]
[1728028293305,0.41915,2385.9,2385.7,3.93]
[1728028293511,3.2078,2386.1,2385.6,4.7489]
[1728028293699,0.41914,2386.0,2385.7,0.41918]
[1728028294705,3.2078,2385.9,2385.7,0.41918]
[1728028295402,3.62695,2385.9,2385.7,0.41918]
[1728028299312,3.2078,2385.9,2385.7,0.41918]
[1728028299501,0.4267,2386.3,2385.9,0.41914]
[1728028299502,0.41912,2386.1,2385.9,0.41914]
[1728028299705,0.41912,2386.1,2386.0,0.821]
[1728028300005,4.121,2386.4,2386.0,4.751]
[1728028300304,0.8158,2386.6,2386.2,3.93]
[1728028300305,0.4069,2386.5,2386.2,3.93]
[1728028300505,0.41907,2386.4,2386.2,3.93]
[1728028300709,0.4069,2386.5,2386.2,3.93]
[1728028300710,0.41905,2386.5,2386.2,3.93]
[1728028301016,0.41905,2386.5,2386.4,3.93]
[1728028301502,0.41907,2386.3,2386.2,3.93]
[1728028301728,0.41907,2386.4,2386.2,3.93]
[1728028302110,0.41907,2386.4,2386.1,4.0428]
[1728028302805,4.97756,2386.6,2386.1,3.2078]
[1728028303001,0.41909,2386.2,2386.1,3.2078]
[1728028304205,0.82569,2386.3,2386.1,3.2078]
[1728028304410,0.4066,2386.3,2386.1,3.2078]
[1728028304610,0.41906,2386.4,2386.1,3.62691]
[1728028304808,1.43446,2386.6,2386.2,3.93]
[1728028304809,0.4149,2386.6,2386.2,3.93]
[1728028305113,0.4149,2386.6,2386.3,0.41907]
[1728028305114,0.83393,2386.6,2386.3,0.41907]
[1728028305502,0.83393,2386.6,2386.4,0.4075]
[1728028307210,0.41904,2386.5,2386.4,0.4075]
[1728028308308,0.4149,2386.6,2386.4,0.4075]
[1728028308527,0.83392,2386.6,2386.4,0.4075]
[1728028308706,0.4149,2386.6,2386.4,0.4075]
[1728028308916,0.83393,2386.6,2386.4,0.4075]
[1728028309303,0.41901,2386.7,2386.4,0.82656]
[1728028309505,0.41901,2386.7,2386.5,0.4256]
[1728028310804,0.394,2386.8,2386.5,0.84463]
[1728028311003,4.0231,2387.0,2386.6,4.34901]
[1728028311004,3.62676,2387.0,2386.6,4.34901]
[1728028311209,3.2078,2387.0,2386.6,4.34901]
[1728028311414,0.41897,2386.9,2386.6,4.34901]
[1728028312408,0.41897,2386.9,2386.6,3.93]
[1728028312917,0.41897,2386.9,2386.6,4.34902]
[1728028313919,3.2078,2387.0,2386.6,4.34902]
[1728028314110,3.62677,2387.0,2386.6,4.34902]
[1728028314310,3.2078,2387.0,2386.6,4.34902]
[1728028314511,0.41897,2386.9,2386.6,4.34902]
[1728028315206,3.62676,2387.0,2386.6,3.93]
[1728028315407,3.62676,2387.0,2386.6,4.34901]
[1728028316119,3.62676,2387.0,2386.7,0.4033]
[1728028316619,3.62676,2387.0,2386.8,0.4182]
[1728028317414,3.2078,2387.0,2386.8,0.4182]
[1728028317815,3.62677,2387.0,2386.8,0.4182]
[1728028318518,3.2078,2387.0,2386.5,0.4256]
[1728028318826,3.2078,2387.0,2386.5,0.4049]
[1728028318827,7.1378,2387.0,2386.5,0.4049]
[1728028319119,0.4238,2386.9,2386.5,0.4049]
[1728028319310,0.41901,2386.7,2386.5,0.4049]
[1728028319526,0.4238,2386.9,2386.5,0.4049]
[1728028319919,0.41902,2386.6,2386.5,0.4049]
[1728028320220,0.4026,2386.8,2386.5,0.4049]
[1728028320417,0.41899,2386.8,2386.5,0.82394]
[1728028320620,0.4238,2386.9,2386.5,0.4049]
[1728028320820,0.84277,2386.9,2386.6,0.4113]
[1728028321021,0.41899,2386.8,2386.6,0.4113]
[1728028321317,0.4238,2386.9,2386.6,0.4113]
[1728028321521,0.84278,2386.9,2386.6,0.4113]
[1728028321916,0.41899,2386.8,2386.6,0.4113]
[1728028323422,0.41899,2386.8,2386.5,0.82393]
[1728028323622,0.41899,2386.8,2386.5,1.22063]
[1728028324522,4.0264,2387.0,2386.5,0.4049]
[1728028324717,3.93,2386.8,2386.1,3.2078]
[1728028324917,3.2078,2386.6,2386.1,0.4066]
[1728028325121,0.4061,2386.5,2386.4,4.34905]
[1728028325525,3.2078,2386.6,2386.5,0.41904]
[1728028325717,3.2078,2386.6,2386.5,0.8404]
[1728028325919,3.2078,2386.6,2386.5,1.25944]
[1728028326427,3.2078,2386.6,2386.5,0.8404]
[1728028327038,3.62682,2386.6,2386.5,0.8404]
[1728028327523,3.2078,2386.6,2386.5,0.8404]